Cogmind - Beta 9.4 @@@ ROGUE MODE // 2020.02.09 @ 02:42:28 Player: Sineso Result: Self-destructed Performance ------------- Evolutions (1) 500 Regions Visited (2) 400 Robots Destroyed (6) 30 Value Destroyed (54) 54 Prototype IDs (0) 0 Alien Tech Used (0) 0 Bonus (0) 0 TOTAL SCORE: 984 Bonus ------- None Cogmind --------- Core Integrity 317/400 Matter 204/300 Energy 62/250 System Corruption 0% Temperature Cool (0) Movement Flying (117) Ox1 Location -9/Materials Parts ------- > --- POWER (1) -------- Ion Engine > --- PROPULSION (3) --- Flight Unit Flight Unit > --- UTILITY (3) ------ Small Storage Unit > --- WEAPON (2) ------- (None) > --- INVENTORY (6) ---- Weight Redist. System Weight Redist. System Weight Redist. System Signal Interpreter Shield Generator Peak State ------------ > --- POWER ------------ Ion Engine > --- PROPULSION ------- Flight Unit Flight Unit Flight Unit > --- UTILITY ---------- Medium Storage Unit Weight Redist. System Shield Generator > --- WEAPON ----------- Light Assault Rifle Mining Laser > --- INVENTORY -------- Small Storage Unit Weight Redist. System Weight Redist. System Weight Redist. System Signal Interpreter Shield Generator Mining Laser [Rating: 12] Favorites ----------- Power Ion Engine Engine Ion Engine Propulsion Aluminum Leg Leg Aluminum Leg Flight Unit Flight Unit Utility Medium Storage Unit Device Shield Generator Storage Medium Storage Unit Processor Improved Targeting Computer Weapon EM Pulse Gun Energy Gun EM Pulse Gun Ballistic Gun Light Assault Rifle Special Weapon Mining Laser Build | -11 -10 -9 ------- Run | Scr Mat Mat Slots Evolved 2 | . . 2 Power . | . . . Propulsion 1 | . . 1 Utility 1 | . . 1 Weapon . | . . . Parts Attached 35 | 5 23 7 Power 4 | 1 3 . Engine 4 | 1 3 . Core . | . . . Reactor . | . . . Propulsion 8 | 2 5 1 Treads . | . . . Leg 4 | 2 2 . Wheel . | . . . Hover . | . . . Flight 4 | . 3 1 Utility 12 | 1 8 3 Device 5 | . 3 2 Storage 6 | 1 4 1 Processor 1 | . 1 . Hackware . | . . . Protection . | . . . Artifact . | . . . Weapon 11 | 1 7 3 Energy Gun 7 | 1 6 . Energy Cannon . | . . . Ballistic Gun 2 | . 1 1 Ballistic Cannon . | . . . Launcher . | . . . Special Weapon 2 | . . 2 Impact Weapon . | . . . Slashing Weapon . | . . . Piercing Weapon . | . . . Special Melee Weapon . | . . . Unidentified Prototypes . | . . . Parts Lost 5 | . 1 4 Power . | . . . Propulsion 1 | . . 1 Utility . | . . . Weapon 4 | . 1 3 Highest Loss Streak 3 | . 1 3 Average Slot Usage (%) 89 | . 92 75 Engine 13 | . 13 11 Leg 14 | . 17 . Flight 13 | . 9 32 Device 10 | . 10 10 Storage 15 | . 16 11 Energy Gun 16 | . 20 . Ballistic Gun 2 | . 2 6 Naked Turns . | . . . Heaviest Build 21 | 11 21 17 Greatest Support 20 | 20 20 18 Greatest Overweight (x) 4 | . 4 1 Average Overweight (x) . | . . . Largest Inventory Capacity 10 | 6 10 10 Average Capacity 7 | 5 8 7 Most Carried 8 | 4 8 8 Average Carried 6 | 1 6 6 Final Capacity 8 | 6 8 6 Final Carried 8 | 2 8 5 Class Distribution -------------------- 92% | Mutant 7% | Scavenger-Mutant Dominant Class ---------------- Mutant | -10/Materials Mutant | -9/Materials Resources | -11 -10 -9 ----------- Run | Scr Mat Mat Matter Collected 449 | 249 200 . Remotely . | . . . Salvage Created 200 | . 200 . Parts 16 | . 16 . Haulers Intercepted 1 | . 1 . Recyclers Shooed 1 | . 1 . Parts Field Recycled . | . . . Retrieved Matter . | . . . Parts Self-Destructed . | . . . Prevented . | . . . Kills | -11 -10 -9 ------- Run | Scr Mat Mat Combat Hostiles Destroyed 3 | . 3 . Guns 3 | . 3 . Classes Destroyed 4 | . 4 . Hauler 1 | . 1 . Recycler 1 | . 1 . Watcher 1 | . 1 . Swarmer 3 | . 3 . Best Kill Streak 2 | . 2 . Combat Bots Only 2 | . 2 . Max Kills in Single Turn 1 | . 1 . Gunslinging . | . . . Exploded . | . . . Melee . | . . . Uniques/NPCs Destroyed . | . . . Combat | -11 -10 -9 -------- Run | Scr Mat Mat Damage Taken 517 | . 176 341 Core 113 | . 30 83 Absorbed by Shields 20 | . 20 . Core Remaining (%) 94 | 100 88 . Volleys Fired 54 | 4 44 6 Largest 2 | 1 2 1 Hottest 100 | 40 80 100 Shots Fired 71 | 4 61 6 Gun 69 | 4 61 4 Cannon . | . . . Launcher . | . . . Special 2 | . . 2 Kinetic 20 | . 16 4 Thermal 2 | . . 2 Explosive . | . . . Electromagnetic 49 | 4 45 . Robot Hit Streak 6 | 2 6 2 Robot Miss Streak 12 | 1 12 2 Penetration Max . | . . . Secondary Targets . | . . . Shots Hit Robots 30 | 2 26 2 Core Hits 8 | . 8 . Critical Hits . | . . . Critical Kills . | . . . Critical Parts Destroyed . | . . . Melee Attacks . | . . . Impact . | . . . Slashing . | . . . Piercing . | . . . Sneak Attacks . | . . . Combat Hostiles . | . . . Follow-up Attacks . | . . . Damage Inflicted 379 | 26 336 17 Guns 379 | 26 336 17 Cannons . | . . . Explosions . | . . . Melee . | . . . Ramming . | . . . Kinetic 83 | . 66 17 Thermal . | . . . Explosive . | . . . Electromagnetic 296 | 26 270 . Impact . | . . . Slashing . | . . . Piercing . | . . . Highest Corruption . | . . . Average Corruption . | . . . Corruption Purged . | . . . Overload Shots . | . . . Overflow Damage . | . . . Projectiles . | . . . Explosions . | . . . Melee . | . . . Knockbacks . | . . . Impact . | . . . Kinetic . | . . . Secondary . | . . . Self-Inflicted Damage . | . . . Shots . | . . . Rammed . | . . . Targets Rammed . | . . . Kicked . | . . . Crushed . | . . . Highest Temperature 144 | 20 144 32 Average Temperature 28 | 14 31 12 Received Heat Transfer 135 | . . 135 Siege Activations . | . . . Robots Corrupted . | . . . Combat Hostiles . | . . . Parts Fried 2 | . 2 . Impact Corruptions . | . . . Robots Melted . | . . . Combat Hostiles . | . . . Parts Melted . | . . . Heat Transferred . | . . . Parts Sabotaged . | . . . Parts Stolen . | . . . Parts Stripped . | . . . Power Chain Reactions . | . . . Missiles Intercepted . | . . . Alert | -11 -10 -9 ------- Run | Scr Mat Mat Peak Influence 84 | . 84 71 Average Influence 25 | . 23 53 Maximum Alert Level . | . . . Low Security (%) 100 | 100 100 100 Level 1 . | . . . Level 2 . | . . . Level 3 . | . . . Level 4 . | . . . Level 5 . | . . . High Security . | . . . Max Security . | . . . Squads Dispatched 3 | . 1 2 Investigation . | . . . Extermination . | . . . Reinforcement 3 | . 1 2 Assault . | . . . Garrison . | . . . Intercept . | . . . Construction Impeded . | . . . Haulers Reinforced . | . . . Stealth | -11 -10 -9 --------- Run | Scr Mat Mat Distress Signals 1 | . . 1 Communications Jammed . | . . . Distress Signals . | . . . Times Spotted 27 | . 7 20 Peak Tracking Total 15 | . 3 15 Tactical Retreats 3 | . 1 2 Traps | -11 -10 -9 ------- Run | Scr Mat Mat Traps Triggered 3 | . 3 . Indirectly . | . . . Trap Hack Attempts . | . . . Triggered . | . . . Disarmed . | . . . Reprogrammed . | . . . Reused . | . . . Traps Extracted . | . . . Installed . | . . . Triggered . | . . . Machines | -11 -10 -9 ---------- Run | Scr Mat Mat Machines Disabled . | . . . Max in Single Turn . | . . . Machines Sabotaged . | . . . Garrisons Compromised . | . . . Overloaded Fab Kills . | . . . Fab Network Shutdowns . | . . . Hacking | -11 -10 -9 --------- Run | Scr Mat Mat Machines Accessed 1 | . 1 . Terminals 1 | . 1 . Fabricators . | . . . Repair Stations . | . . . Recycling Units . | . . . Scanalyzers . | . . . Garrison Access . | . . . Total Hacks 1 | . 1 . Successful 1 | . 1 . Failed . | . . . Catastrophic . | . . . Database Lockouts . | . . . Manual . | . . . Terminals 1 | . 1 . Fabricators . | . . . Repair Stations . | . . . Recycling Units . | . . . Scanalyzers . | . . . Garrison Access . | . . . Terminal Hacks 1 | . 1 . Alert Level 1 | . 1 . Fabricator Hacks . | . . . Repair Station Hacks . | . . . Recycling Unit Hacks . | . . . Scanalyzer . | . . . Garrison Access Hacks . | . . . Unauthorized Hacks . | . . . Terminals . | . . . Fabricators . | . . . Repair Stations . | . . . Recycling Units . | . . . Scanalyzers . | . . . Garrison Access . | . . . Data Cores Recovered . | . . . Used . | . . . Hacking Detections . | . . . Full Trace Events . | . . . Feedback Events . | . . . Feedback Blocked . | . . . Robot Schematics Acquired . | . . . Robots Built . | . . . Matter . | . . . Time . | . . . Total Robot Build Rating . | . . . Part Schematics Acquired . | . . . Parts Built . | . . . Matter . | . . . Time . | . . . Total Part Build Rating . | . . . Parts Repaired . | . . . Time . | . . . Parts Recycled . | . . . Recycled Matter . | . . . Retrieved Matter . | . . . Retrieved Components . | . . . Parts Scanalyzed . | . . . Part Schematics Acquired . | . . . Parts Damaged . | . . . Bothacking | -11 -10 -9 ------------ Run | Scr Mat Mat Used RIF Installer . | . . . Robots Hacked . | . . . Non-combat . | . . . Combat . | . . . Robot Hacks Applied . | . . . Relay Couplers Released . | . . . Robots Rewired . | . . . Allies Hacked . | . . . Hacks Repelled . | . . . Allies | -11 -10 -9 -------- Run | Scr Mat Mat Total Allies . | . . . Largest Group . | . . . Highest-Rated Group . | . . . Highest-Rated Ally . | . . . Total Orders . | . . . Ally Attacks . | . . . Total Damage . | . . . Kills . | . . . Allies Corrupted . | . . . Allies Melted . | . . . Intel | -11 -10 -9 ------- Run | Scr Mat Mat Robot Analysis Total . | . . . Derelict Logs Recovered . | . . . Drone Launches . | . . . Drone Recoveries . | . . . Exploration | -11 -10 -9 ------------- Run | Scr Mat Mat Turns Passed 840 | 78 632 130 Spaces Moved 759 | 64 503 192 Core 25 | 25 . . Treads . | . . . Legs 299 | 39 260 . Wheels . | . . . Hover . | . . . Flight 435 | . 243 192 Fastest Speed 34 | 50 37 34 Average Speed 73 | 92 85 37 Slowest Speed 360 | 120 360 117 Overloaded Moves . | . . . Propulsion Burnouts . | . . . Robots Hopped 1 | . . 1 Cave-ins Triggered . | . . . Exploration Rate (%) 19 | 5 30 23 Regions Visited 2 Branch Regions . Pre-discovered Areas . | . . . Known Exits Taken . | . . . Unknown Exits Taken 2 | 1 1 . Scrap Searched . | . . . Spaces Dug 2 | . . 2 Terrain Destroyed 2 | . . 2 Melee . | . . . Projectile 2 | . . 2 AOE . | . . . Actions | -11 -10 -9 --------- Run | Scr Mat Mat Total 977 | 78 657 242 Wait 63 | . 33 30 Move 755 | 63 502 190 Hop 1 | . . 1 Pick Up 38 | 6 30 2 Fast Attach 5 | 1 4 . Attach 23 | 4 12 7 Detach 7 | . 4 3 Swap 7 | . 7 . Drop 24 | . 21 3 Fire 54 | 4 44 6 Melee . | . . . Ram . | . . . Kick . | . . . Crush . | . . . Escape Stasis . | . . . Rewire . | . . . Trap . | . . . Miscellaneous . | . . . Route ------- -11/Scrapyard -10/Materials (discovered 2 exits: [*Mat] / [*Min]) -9/Materials (discovered 2 exits: [*Mat] / [*Min]) History --------- Turn | Location | Event 11 | -11/Scrapyard | Discovered new exit (range 15) 79 | -11/Scrapyard | Entered Materials 196 | -10/Materials | Discovered new exit (range 6) 309 | -10/Materials | Build established: Mutant 336 | -10/Materials | Discovered new exit (range 7) 711 | -10/Materials | Entered another Materials area 711 | -9/Materials | Evolved 2 slots: Propulsion x1, Utility x1 824 | -9/Materials | Discovered new exit (range 6) 830 | -9/Materials | Discovered new exit (range 14) 841 | -9/Materials | Self-destructed Last Messages --------------- PARAMETERS=PROPULSION_1,UTILITY_1 LOCATION=UNKNOWN GOAL=ESCAPE 00724_ ALERT: Hostiles spotted, dispatching reinforcements to Terminal M005. 00728_ Acquired Mining Laser. 00729_ O-16 Technician uses terminal to summon reinforcements. 00729_ ALERT: Hostiles spotted, dispatching reinforcements to Terminal M004. 00729_ O-16 Technician locks terminal. 00761_ Mining Laser destroyed. 00763_ U-05 Engineer destroyed. 00768_ Dropped Shield Generator. 00782_ Dropped Weight Redist. System. 00797_ Dropped Med. Storage Unit. 00804_ W-16 Scout sends out distress signal. 00807_ Mining Laser destroyed. 00824_ EXIT=FOUND 00837_ Flight Unit destroyed. 00840_ Lgt. Assault Rifle destroyed. Map ----- +----------------------------------------------------+ | ?????????????????????#"" #?# """ # ## | | ?????????????????????#!! #?# + / | | ?????????????????????#"" < #?# # ## | | ?????????????????????#|| #?# # ## | | ?????????????????????#"" ??#![ # ## | | ??????????????????????? ??#[! # ## | | ????????????????????????# ############# ###### | | ????????????????????????# # # | | ????????????????????????# + / | | ????????????????????????# # # | | ????????????????????????# # ########## | | ????????????????????????# # #????????? | | ?????????????############ # #????????" | | ???????????# #############????????? | | ???????????# #######??????????????? | | ???????????+ """" # ??????????????? | | ???????????#+###+### """" # """""??????????????? | | ???????????????????# """" !# """""??????????????? | | ???????????????????+ # """""??????????????? | | ???????????????????# ! + """"" ?????????????? | | ???????????????????# # """"" ?????????????? | | ??????????????????#######+#+# """"" ?????????????? | | ??????????????????# # """"" #???????????? | | ??????????????????# "Y" + #???????????? | | ??????????????????# s""" ########?????????????? | | ??????????????????# s@s #????????????????????? | | ??????????????????########s##????????????????????? | | ?????????????????????????# #???????????????????#?? | | ?????????????????????????# #???????????????????""? | | ?????????????????????????# #????????????????? "T" | | ?????????????????????????# #????????????????# | | ?????????????????????????# #??????????????????? | | ?????????????????????????# #?????????????????????? | | ?????????????????????????# #?????????????????????? | | ?????????????????????????? ??????????????????????? | | ?????????????????????????? ??????????????????????? | | ?????????????????????????? ??????????????????????? | | ?????????????????????????? ????????????????????### | | ?????????????????????????? ????????????????????" | | ??????????????????????????